[Event "TUR-ch Veterans 2019"]
[Site "Belek"]
[Date "2019.01.25"]
[Round "6.15"]
[White "Alkan, Sukru"]
[Black "Cicek, Cemil"]
[Result "0-1"]
[ECO "D03"]
[WhiteElo "1484"]
[BlackElo "1999"]
[Annotator "NA"]
[PlyCount "132"]
[EventDate "2019.01.20"]
[EventType "swiss"]
[EventCountry "TUR"]
[SourceTitle "playchess.com"]
[Source "ChessBase"]
[SourceQuality "1"]
[TimeControl "5400+30"]

1. d4 {[%emt 0:00:30]} d5 {[%emt 0:00:30]} 2. Nf3 {[%emt 0:00:00]} Nf6 {[%emt 0:00:00]} 3. Bg5 {[%emt 0:00:00]} e6 {[%emt 0:01:00]} 4. Nbd2 {[%emt 0:00:00]} Be7 {[%emt 0:00:30]} 5. e3 {[%emt 0:00:00]} Nbd7 {[%emt 0:00:30]} 6. Bd3 {[%emt 0:00:30]} c5 {[%emt 0:00:30]} 7. c3 {[%emt 0:00:00]} Qb6 {[%emt 0:00:30]} 8. Rb1 {[%emt 0:02:00] D03: 1 d4 d5 2 Nf3 Nf6 3 Bg5, including Torre Attack with early ...d5} a5 {[%emt 0:00:30]} 9. O-O $146 {[%emt 0:00:30]} ({Predecessor:} 9. Qe2 O-O 10. Ne5 Re8 11. f4 Qc7 12. O-O c4 13. Bc2 b5 14. Rf3 {1-0 (35) Rodriguez Gonzalez,J (2262)-Vukotic Jovsic,D (1995) Madrid 2009}) 9... Qc7 {[%emt 0:02:30]} 10. Qe2 {[%emt 0:00:30]} c4 {[%emt 0:00:30]} 11. Bc2 {[%emt 0:00:30]} b5 {[%emt 0:01:30]} 12. e4 {[%emt 0:00:30]} dxe4 {[%emt 0:00:30]} 13. Nxe4 {[%emt 0:00:30]} Bb7 {[%emt 0:00:30]} 14. Rfe1 {[%emt 0:01:30]} O-O {[%emt 0:00:00]} 15. Bh4 {[%emt 0:00:30]} Rfe8 {[%emt 0:02:00]} 16. Bg3 {[%emt 0:03:30]} Qb6 {[%emt 0:01:30]} 17. h3 {[%emt 0:00:30]} Nd5 {[%emt 0:00:30]} (17... Nxe4 $11 18. Bxe4 Bxe4 19. Qxe4 Rac8) 18. Ne5 {[%emt 0:02:30]} Nf8 {[%emt 0:01:30]} 19. Qh5 {[%emt 0:02:30]} g6 {[%emt 0:03:30]} (19... Ng6 $16 {was called for.}) 20. Qh6 {[%emt 0:01:30]} Qd8 {[%emt 0:01:30] [#]} 21. Nf3 $2 {[%emt 0:08:30]} (21. Nxf7 $1 $18 Kxf7 22. Be5) 21... f5 {[%emt 0:01:30]} (21... Nf6 $1 $11) 22. Nc5 {[%emt 0:03:30]} Bc8 {[%emt 0:02:30]} 23. Be5 {[%emt 0:02:30]} Bf6 {[%emt 0:01:30]} 24. Re2 {[%emt 0:01:30]} Bxe5 {[%emt 0:04:30]} 25. Rxe5 {[%emt 0:01:30]} Ra7 {[%emt 0:04:30]} 26. Rbe1 {[%emt 0:04:30]} Rae7 {[%emt 0:03:30]} 27. h4 {[%emt 0:00:30]} Nf6 {[%emt 0:01:30]} 28. R5e2 {[%emt 0:00:30]} Ng4 {[%emt 0:00:30]} 29. Qf4 {[%emt 0:01:30]} Rg7 {[%emt 0:01:30]} 30. Ne5 {[%emt 0:00:30]} Nf6 {[%emt 0:03:30]} (30... g5 $16 31. hxg5 Nxe5) 31. Qg5 {[%emt 0:03:30]} Nd5 {[%emt 0:02:30]} 32. Qxd8 {[%emt 0:02:30]} Rxd8 {[%emt 0:00:30]} 33. Nc6 {[%emt 0:00:30]} Rd6 {[%emt 0:00:30]} 34. Ne5 {[%emt 0:02:30]} h6 {[%emt 0:00:30]} 35. Kh2 {[%emt 0:02:30]} g5 {[%emt 0:00:30]} 36. Nf3 {[%emt 0:02:30]} b4 {[%emt 0:01:30]} 37. cxb4 {[%emt 0:00:30]} axb4 {[%emt 0:00:30]} 38. Ne5 {[%emt 0:02:30]} Nf4 {[%emt 0:00:30]} 39. Rd2 $1 {[%emt 0:01:30]} gxh4 {[%emt 0:04:30]} 40. Nxc4 {[%emt 0:02:30]} Rxg2+ {[%emt 0:01:30]} 41. Kh1 {[%emt 0:00:30]} Rd8 {[%emt 0:01:30]} 42. Ne3 {[%emt 0:00:30]} Rg7 {[%emt 0:00:30]} 43. Bb3 {[%emt 0:00:30]} Kh7 {[%emt 0:00:30]} 44. Rg1 {[%emt 0:02:30]} (44. d5 $11) 44... Rc7 {[%emt 0:00:30]} 45. Rgd1 {[%emt 0:00:00]} Rd6 {[%emt 0:01:30]} 46. Nc4 {[%emt 0:00:00]} Rd8 {[%emt 0:01:30]} 47. Ne5 {[%emt 0:00:30]} N8g6 {[%emt 0:00:30]} 48. Nxg6 {[%emt 0:01:30]} Kxg6 {[%emt 0:00:30]} 49. Kg1 {[%emt 0:01:30]} (49. Rc2 $15) 49... Kf6 $17 {[%emt 0:00:30]} 50. Kh2 {[%emt 0:00:30]} Rg8 {[%emt 0:01:30]} 51. Rg1 {[%emt 0:00:30]} Rg5 {[%emt 0:00:30]} 52. Nd3 {[%emt 0:01:30]} Nxd3 {[%emt 0:01:30]} 53. Rxd3 {[%emt 0:00:00]} Rcg7 {[%emt 0:00:30]} 54. Rdd1 {[%emt 0:01:00]} Bb7 {[%emt 0:00:30]} 55. Rxg5 {[%emt 0:02:30]} hxg5 {[%emt 0:01:30]} 56. Re1 {[%emt 0:00:00]} Be4 {[%emt 0:00:00]} 57. f3 {[%emt 0:00:00]} Bd5 {[%emt 0:00:00]} 58. Bxd5 {[%emt 0:00:30]} exd5 {[%emt 0:00:30]} 59. a4 {[%emt 0:00:00]} bxa3 {[%emt 0:00:30]} 60. bxa3 {[%emt 0:00:00]} Ra7 {[%emt 0:00:30]} 61. Re3 {[%emt 0:00:30]} Ra4 {[%emt 0:00:30]} 62. Rd3 {[%emt 0:00:00]} g4 {[%emt 0:00:30]} 63. Kg2 {[%emt 0:00:00]} Kg5 {[%emt 0:00:30]} 64. Rb3 {[%emt 0:00:30]} Rxd4 {[%emt 0:00:30]} 65. Rb4 {[%emt 0:00:30]} Rd2+ {[%emt 0:00:30]} 66. Kf1 {[%emt 0:00:30]} g3 {[%emt 0:00:30]} 0-1

[Event "TUR-ch Veterans 2019"]
[Site "Belek"]
[Date "2019.01.25"]
[Round "6.16"]
[White "Bapoglu, Ibrahim"]
[Black "Buyukgokcesu, Tahir Sami"]
[Result "1/2-1/2"]
[ECO "B62"]
[WhiteElo "1549"]
[BlackElo "1557"]
[Annotator "NA RC"]
[PlyCount "63"]
[EventDate "2019.01.20"]
[EventType "swiss"]
[EventCountry "TUR"]
[SourceTitle "playchess.com"]
[Source "ChessBase"]
[SourceQuality "1"]
[TimeControl "5400+30"]

1. e4 {[%emt 0:00:30]} c5 {[%emt 0:01:30]} 2. Nf3 {[%emt 0:00:00]} Nc6 {[%emt 0:00:30]} 3. Bb5 {[%emt 0:00:00]} d6 {[%emt 0:02:30]} 4. d4 {[%emt 0:01:30]} cxd4 {[%emt 0:00:30]} 5. Nxd4 {[%emt 0:00:30]} Bd7 {[%emt 0:00:30]} 6. O-O {[%emt 0:00:30]} Nf6 {[%emt 0:02:30]} 7. Nc3 {[%emt 0:00:30]} e6 {[%emt 0:00:30]} 8. Bg5 {[%emt 0:01:30]} Be7 {[%emt 0:00:30]} 9. Re1 {[%emt 0:01:30]} O-O {[%emt 0:04:30]} 10. Nxc6 {[%emt 0:03:30]} bxc6 {[%emt 0:02:30]} 11. Be2 {[%emt 0:01:30]} Qc7 {[%emt 0:01:30]} 12. Bf3 {[%emt 0:00:30]} e5 {[%emt 0:01:30]} 13. Qd2 {[%emt 0:01:30]} Be6 {[%emt 0:02:30]} 14. Rad1 {[%emt 0:01:30]} Rab8 {[%emt 0:02:30]} 15. b3 {[%emt 0:00:30]} Rfd8 {[%emt 0:00:30]} 16. h3 {[%emt 0:02:30]} Qc8 {[%emt 0:05:30]} 17. Qe2 {[%emt 0:01:30]} Qb7 {[%emt 0:02:30]} 18. Rd3 {[%emt 0:04:30]} Qa6 {[%emt 0:03:30]} 19. Red1 {[%emt 0:01:30]} Qa5 {[%emt 0:04:30]} 20. a4 {[%emt 0:04:30]} Bc8 {[%emt 0:01:30]} 21. Bxf6 {[%emt 0:06:30]} Bxf6 {[%emt 0:00:30]} 22. Qd2 {[%emt 0:02:30]} Be7 {[%emt 0:03:30]} 23. Nd5 {[%emt 0:01:30]} Qxd2 {[%emt 0:00:30]} 24. Nxe7+ {[%emt 0:00:30]} Kf8 {[%emt 0:00:30]} 25. Ng6+ {[%emt 0:00:30]} hxg6 {[%emt 0:00:30]} 26. R1xd2 {[%emt 0:00:30]} Ke7 {[%emt 0:00:00]} 27. c4 {[%emt 0:01:30]} c5 {[%emt 0:02:00]} 28. g4 {[%emt 0:01:30]} a5 {[%emt 0:00:30]} 29. Kh2 {[%emt 0:01:30]} Rb6 {[%emt 0:02:30]} 30. Bd1 {[%emt 0:02:30]} g5 {[%emt 0:04:30]} 31. Bc2 {[%emt 0:02:30]} Rh8 {[%emt 0:02:30]} 32. Kg2 {[%emt 0:00:30]} 1/2-1/2

[Event "TUR-ch Veterans 2019"]
[Site "Belek"]
[Date "2019.01.25"]
[Round "6.17"]
[White "Suzan, Mehmet"]
[Black "Ersoz, Celalettin"]
[Result "1/2-1/2"]
[ECO "E20"]
[WhiteElo "1501"]
[BlackElo "1261"]
[Annotator "NA"]
[PlyCount "98"]
[EventDate "2019.01.20"]
[EventType "swiss"]
[EventCountry "TUR"]
[SourceTitle "playchess.com"]
[Source "ChessBase"]
[SourceQuality "1"]
[TimeControl "5400+30"]

1. d4 {[%emt 0:00:30]} Nf6 {[%emt 0:00:30]} 2. c4 {[%emt 0:00:00]} e6 {[%emt 0:00:30]} 3. Nc3 {[%emt 0:00:00]} Bb4 {[%emt 0:00:30]} 4. Bd2 {[%emt 0:00:30]} b6 {[%emt 0:01:30]} 5. a3 {[%emt 0:01:30]} Bxc3 {[%emt 0:01:30]} 6. Bxc3 {[%emt 0:00:30]} Bb7 {[%emt 0:00:00]} 7. e3 {[%emt 0:00:30]} d6 {[%emt 0:00:00]} 8. b3 {[%emt 0:00:30]} O-O {[%emt 0:01:30]} 9. Nf3 {[%emt 0:00:00]} Nbd7 {[%emt 0:01:30]} 10. Bd3 {[%emt 0:00:00]} e5 {[%emt 0:02:30]} 11. Bc2 {[%emt 0:04:30]} Re8 {[%emt 0:04:30]} 12. O-O {[%emt 0:00:00]} e4 {[%emt 0:04:30]} 13. Nd2 {[%emt 0:00:00]} Rc8 {[%emt 0:00:30]} 14. Re1 {[%emt 0:02:30]} Nf8 {[%emt 0:01:30]} 15. Nf1 {[%emt 0:00:00]} Ng6 {[%emt 0:00:30]} 16. Ng3 {[%emt 0:04:00]} Qd7 {[%emt 0:04:30]} 17. b4 {[%emt 0:01:30]} Qg4 {[%emt 0:03:30]} 18. Qxg4 {[%emt 0:02:30]} Nxg4 {[%emt 0:01:30]} 19. h3 {[%emt 0:00:30]} Nf6 {[%emt 0:01:30]} 20. a4 {[%emt 0:00:30]} d5 {[%emt 0:00:30]} 21. c5 {[%emt 0:00:30]} Ne7 {[%emt 0:01:30]} 22. Rec1 {[%emt 0:04:30]} Ra8 {[%emt 0:04:30]} 23. Bd1 {[%emt 0:01:30]} a6 {[%emt 0:01:30]} 24. Be2 {[%emt 0:00:30]} a5 {[%emt 0:01:30]} 25. b5 {[%emt 0:02:30]} Bc8 {[%emt 0:01:30]} 26. Rc2 {[%emt 0:01:30]} Be6 {[%emt 0:03:30]} 27. Rac1 {[%emt 0:00:00]} Rec8 {[%emt 0:01:30]} 28. Bb2 {[%emt 0:01:00]} Ng6 {[%emt 0:01:30]} 29. Ba3 {[%emt 0:01:30]} Nf8 {[%emt 0:03:30]} 30. Nh5 {[%emt 0:01:30]} Nxh5 {[%emt 0:02:30]} 31. Bxh5 {[%emt 0:00:00]} g6 {[%emt 0:00:30]} 32. Bg4 {[%emt 0:00:00]} f5 {[%emt 0:00:30]} 33. Be2 {[%emt 0:00:30]} Bd7 {[%emt 0:02:30]} 34. f3 {[%emt 0:00:30]} Ne6 {[%emt 0:02:30]} 35. fxe4 {[%emt 0:00:30]} fxe4 {[%emt 0:02:30]} 36. h4 {[%emt 0:00:30]} h5 {[%emt 0:00:30]} 37. g4 {[%emt 0:00:30]} Ng7 {[%emt 0:00:30]} 38. gxh5 {[%emt 0:03:30]} Nxh5 {[%emt 0:07:30]} 39. Bxh5 {[%emt 0:02:30]} gxh5 {[%emt 0:00:00]} 40. cxb6 {[%emt 0:00:00]} cxb6 {[%emt 0:00:00]} 41. Rxc8+ {[%emt 0:00:00]} Rxc8 {[%emt 0:00:30]} 42. Rxc8+ {[%emt 0:00:30]} Bxc8 {[%emt 0:00:00]} 43. Bd6 {[%emt 0:00:30]} Bg4 {[%emt 0:00:00]} 44. Bc7 {[%emt 0:00:30]} Bd1 {[%emt 0:00:30]} 45. Bxb6 {[%emt 0:00:30]} Bxa4 {[%emt 0:01:30]} 46. Bxa5 {[%emt 0:00:30]} Bxb5 {[%emt 0:00:30]} 47. Kg2 {[%emt 0:00:00]} Kf7 {[%emt 0:00:30]} 48. Kg3 {[%emt 0:00:00]} Ke6 {[%emt 0:00:30]} 49. Kf4 {[%emt 0:00:30]} Be2 {[%emt 0:00:30]} 1/2-1/2

[Event "TUR-ch Veterans 2019"]
[Site "Belek"]
[Date "2019.01.25"]
[Round "6.18"]
[White "Yilmaz, Huseyin"]
[Black "Saglam, Sami"]
[Result "1-0"]
[ECO "D38"]
[WhiteElo "1321"]
[BlackElo "1424"]
[Annotator "NA RC"]
[PlyCount "65"]
[EventDate "2019.01.20"]
[EventType "swiss"]
[EventCountry "TUR"]
[SourceTitle "playchess.com"]
[Source "ChessBase"]
[SourceQuality "1"]
[TimeControl "5400+30"]

1. d4 {[%emt 0:00:30]} d5 {[%emt 0:00:30]} 2. c4 {[%emt 0:00:00]} e6 {[%emt 0:00:30]} 3. Nf3 {[%emt 0:00:00]} Nf6 {[%emt 0:00:30]} 4. Nc3 {[%emt 0:00:30]} Bb4 {[%emt 0:00:30]} 5. a3 {[%emt 0:00:30]} Bxc3+ {[%emt 0:01:30]} 6. bxc3 {[%emt 0:00:30]} h6 {[%emt 0:00:30]} 7. Bf4 {[%emt 0:01:30]} dxc4 {[%emt 0:03:30]} 8. Qa4+ {[%emt 0:00:30]} Nbd7 {[%emt 0:02:30]} 9. Qxc4 {[%emt 0:00:30]} Nd5 {[%emt 0:02:30]} 10. Bd2 {[%emt 0:01:30]} O-O {[%emt 0:01:30]} 11. e4 {[%emt 0:00:00]} N5b6 {[%emt 0:01:30]} 12. Qb3 {[%emt 0:01:00]} Nf6 {[%emt 0:02:30]} 13. Bd3 {[%emt 0:00:30]} c6 {[%emt 0:00:30]} 14. e5 {[%emt 0:00:30]} Nfd7 {[%emt 0:02:30]} 15. Rd1 {[%emt 0:00:30]} Qe7 {[%emt 0:00:30]} 16. Bb1 {[%emt 0:00:30]} Rd8 {[%emt 0:04:30]} 17. Qc2 {[%emt 0:02:30]} Nf8 {[%emt 0:01:30]} 18. a4 {[%emt 0:00:30]} Qa3 {[%emt 0:02:30]} 19. O-O {[%emt 0:01:30]} Qxa4 {[%emt 0:00:30]} 20. Qe4 {[%emt 0:00:30]} Qc4 {[%emt 0:02:30]} 21. Qg4 {[%emt 0:02:30]} f5 {[%emt 0:02:30]} 22. exf6 {[%emt 0:00:30]} Rd7 {[%emt 0:01:30]} 23. Ne5 {[%emt 0:00:00]} Qd5 {[%emt 0:00:30]} 24. Nxd7 {[%emt 0:01:00]} Qxd7 {[%emt 0:00:30]} 25. Bxh6 {[%emt 0:00:30]} e5 {[%emt 0:00:30]} 26. Qg5 {[%emt 0:04:30]} Qf7 {[%emt 0:01:30]} 27. dxe5 {[%emt 0:00:30]} Nd5 {[%emt 0:01:30]} 28. c4 {[%emt 0:00:30]} Nc7 {[%emt 0:00:30]} 29. Bxg7 {[%emt 0:02:30]} Nce6 {[%emt 0:00:30]} 30. Qg3 {[%emt 0:10:30]} Nxg7 {[%emt 0:02:30]} 31. Rd8 {[%emt 0:00:30]} a5 {[%emt 0:01:30]} 32. Bg6 {[%emt 0:02:30]} Qc7 {[%emt 0:00:00]} 33. f7+ {[%emt 0:00:30]} 1-0

[Event "TUR-ch Veterans 2019"]
[Site "Belek"]
[Date "2019.01.25"]
[Round "6.19"]
[White "Tekeli, Savran"]
[Black "Turkucu, Eyup"]
[Result "1-0"]
[ECO "B07"]
[WhiteElo "1478"]
[BlackElo "1214"]
[Annotator "NA"]
[PlyCount "125"]
[EventDate "2019.01.20"]
[EventType "swiss"]
[EventCountry "TUR"]
[SourceTitle "playchess.com"]
[Source "ChessBase"]
[SourceQuality "1"]
[TimeControl "5400+30"]

1. e4 {[%emt 0:00:30]} d6 {[%emt 0:00:30]} 2. f4 {[%emt 0:00:00]} e6 {[%emt 0:00:30]} 3. Nf3 {[%emt 0:01:00]} Be7 {[%emt 0:01:30]} 4. d4 {[%emt 0:00:30]} Nd7 {[%emt 0:00:30]} 5. Bd3 {[%emt 0:00:30]} b6 {[%emt 0:00:30]} 6. c4 {[%emt 0:00:30]} Bb7 {[%emt 0:01:30]} 7. Nc3 {[%emt 0:00:30]} Ngf6 {[%emt 0:02:30]} 8. O-O {[%emt 0:00:30]} c6 {[%emt 0:05:30]} 9. h3 {[%emt 0:01:30]} h6 {[%emt 0:04:30]} 10. Be3 {[%emt 0:00:30]} Nf8 {[%emt 0:02:30]} 11. Qd2 {[%emt 0:01:30]} N8h7 {[%emt 0:03:30]} 12. b3 {[%emt 0:01:30]} Qc7 {[%emt 0:05:30]} 13. d5 {[%emt 0:00:30]} cxd5 {[%emt 0:01:30]} 14. cxd5 {[%emt 0:00:30]} e5 {[%emt 0:00:30]} 15. Rac1 {[%emt 0:01:30]} exf4 {[%emt 0:02:30]} 16. Bxf4 {[%emt 0:01:30]} Nh5 {[%emt 0:00:00]} 17. Bb5+ {[%emt 0:01:30]} Kf8 {[%emt 0:00:00]} 18. g4 {[%emt 0:00:30]} Nxf4 {[%emt 0:02:30]} 19. Qxf4 {[%emt 0:00:30]} g5 {[%emt 0:00:30]} 20. Qe3 {[%emt 0:01:30]} a6 {[%emt 0:00:30]} 21. Bd3 {[%emt 0:00:30]} Bf6 {[%emt 0:01:30]} 22. Ne2 {[%emt 0:01:30]} Qe7 {[%emt 0:00:30]} 23. Qxb6 {[%emt 0:02:30]} Kg7 {[%emt 0:00:30]} 24. Rc7 {[%emt 0:00:30]} Qd8 {[%emt 0:02:30]} 25. Qxb7 {[%emt 0:02:30]} Rf8 {[%emt 0:00:30]} 26. Rfc1 {[%emt 0:01:30]} Bb2 {[%emt 0:00:30]} 27. R1c2 {[%emt 0:02:30]} Ba3 {[%emt 0:00:00]} 28. Kg2 {[%emt 0:03:30]} Nf6 {[%emt 0:00:00]} 29. Ned4 {[%emt 0:01:30]} Kg8 {[%emt 0:03:30]} 30. Nf5 {[%emt 0:00:30]} Rb8 {[%emt 0:05:30]} 31. Qc6 {[%emt 0:05:30]} Ne8 {[%emt 0:01:30]} 32. Rc8 {[%emt 0:03:30]} Rxc8 {[%emt 0:03:30]} 33. Qxc8 {[%emt 0:00:30]} Qf6 {[%emt 0:00:30]} 34. Qxa6 {[%emt 0:03:30]} Bb2 {[%emt 0:01:30]} 35. Qb7 {[%emt 0:03:30]} Ng7 {[%emt 0:01:30]} 36. Qd7 {[%emt 0:05:30]} Nxf5 {[%emt 0:01:30]} 37. Qxf5 {[%emt 0:01:30]} Kg7 {[%emt 0:09:30]} 38. e5 {[%emt 0:00:30]} Qxf5 {[%emt 0:01:30]} 39. Bxf5 {[%emt 0:01:30]} Bxe5 {[%emt 0:00:00]} 40. Nd2 {[%emt 0:04:30]} Kf6 {[%emt 0:03:00]} 41. Nc4 {[%emt 0:00:30]} Bf4 {[%emt 0:00:30]} 42. Re2 {[%emt 0:01:30]} h5 {[%emt 0:00:30]} 43. Kf3 {[%emt 0:01:30]} Rh8 {[%emt 0:02:30]} 44. Nb2 {[%emt 0:00:30]} Rb8 {[%emt 0:03:30]} 45. Nd3 {[%emt 0:00:30]} Be5 {[%emt 0:01:30]} 46. Nxe5 {[%emt 0:01:30]} dxe5 {[%emt 0:00:30]} 47. Rc2 {[%emt 0:00:30]} Rd8 {[%emt 0:00:30]} 48. Rc6+ {[%emt 0:00:30]} Kg7 {[%emt 0:00:30]} 49. Ke4 {[%emt 0:01:30]} f6 {[%emt 0:00:00]} 50. Rc7+ {[%emt 0:00:00]} Kg8 {[%emt 0:00:00]} 51. gxh5 {[%emt 0:00:00]} Rb8 {[%emt 0:01:30]} 52. Be6+ {[%emt 0:01:30]} Kh8 {[%emt 0:02:30]} 53. d6 {[%emt 0:00:30]} Rb4+ {[%emt 0:00:00]} 54. Bc4 {[%emt 0:00:30]} Rb8 {[%emt 0:01:00]} 55. d7 {[%emt 0:00:30]} f5+ {[%emt 0:01:30]} 56. Kxe5 {[%emt 0:00:30]} g4 {[%emt 0:00:30]} 57. Rc8+ {[%emt 0:01:30]} Kg7 {[%emt 0:00:30]} 58. Rxb8 {[%emt 0:00:30]} gxh3 {[%emt 0:00:30]} 59. Kxf5 {[%emt 0:00:30]} h2 {[%emt 0:00:00]} 60. Bd5 {[%emt 0:00:30]} h1=Q {[%emt 0:01:00]} 61. Bxh1 {[%emt 0:00:30]} Kh6 {[%emt 0:00:30]} 62. a4 {[%emt 0:00:30]} Kxh5 {[%emt 0:00:00]} 63. Rh8# {[%emt 0:00:30]} 1-0

[Event "TUR-ch Veterans 2019"]
[Site "Belek"]
[Date "2019.01.25"]
[Round "6.20"]
[White "Altin, Halis"]
[Black "Atas, Remzi"]
[Result "1-0"]
[ECO "B13"]
[WhiteElo "1642"]
[BlackElo "1477"]
[Annotator "NA"]
[PlyCount "85"]
[EventDate "2019.01.20"]
[EventType "swiss"]
[EventCountry "TUR"]
[SourceTitle "playchess.com"]
[Source "ChessBase"]
[SourceQuality "1"]
[TimeControl "5400+30"]

1. e4 {[%emt 0:00:30]} c6 {[%emt 0:00:30]} 2. d4 {[%emt 0:00:00]} d5 {[%emt 0:00:00]} 3. exd5 {[%emt 0:01:00]} cxd5 {[%emt 0:00:00]} 4. Nf3 {[%emt 0:00:30]} Nc6 {[%emt 0:00:30]} 5. Nc3 {[%emt 0:01:30]} Nf6 {[%emt 0:01:30]} 6. Be2 {[%emt 0:00:30]} Bf5 {[%emt 0:00:30]} 7. a3 {[%emt 0:03:30]} e6 {[%emt 0:00:30]} 8. h3 {[%emt 0:08:30]} h6 {[%emt 0:00:30]} 9. Be3 {[%emt 0:01:30]} Bd6 {[%emt 0:00:30]} 10. O-O {[%emt 0:03:30]} O-O {[%emt 0:00:30]} 11. Bd3 {[%emt 0:03:30]} Bxd3 {[%emt 0:00:30]} 12. Qxd3 {[%emt 0:00:30]} a6 {[%emt 0:00:30]} 13. Rfe1 {[%emt 0:02:30]} Rc8 {[%emt 0:01:30]} 14. Re2 {[%emt 0:03:30]} Qc7 {[%emt 0:00:30]} 15. Rae1 {[%emt 0:01:30]} Na5 {[%emt 0:00:30]} 16. Nb1 {[%emt 0:04:30]} Nc4 {[%emt 0:05:30]} 17. Bc1 {[%emt 0:01:30]} Ne4 {[%emt 0:01:30]} 18. b3 {[%emt 0:01:30]} Nb6 {[%emt 0:01:30]} 19. c4 {[%emt 0:02:30]} Nd7 {[%emt 0:01:30]} 20. c5 {[%emt 0:01:30]} Bf4 {[%emt 0:00:30]} 21. Bxf4 {[%emt 0:03:30]} Qxf4 {[%emt 0:00:00]} 22. Nbd2 {[%emt 0:00:30]} Ndf6 {[%emt 0:04:00]} 23. Qe3 {[%emt 0:04:30]} Qc7 {[%emt 0:04:30]} 24. Nxe4 {[%emt 0:01:30]} Nxe4 {[%emt 0:01:30]} 25. Ne5 {[%emt 0:03:30]} f5 {[%emt 0:04:30]} 26. f3 {[%emt 0:09:30]} f4 {[%emt 0:00:30]} 27. Qd3 {[%emt 0:00:30]} Ng3 {[%emt 0:00:30]} 28. Rc2 {[%emt 0:01:30]} Rf6 {[%emt 0:01:30]} 29. Ng4 {[%emt 0:00:30]} Qf7 {[%emt 0:04:30]} 30. Nxf6+ {[%emt 0:01:30]} Qxf6 {[%emt 0:00:30]} 31. b4 {[%emt 0:01:30]} Nf5 {[%emt 0:00:00]} 32. Rd2 {[%emt 0:03:30]} Re8 {[%emt 0:05:00]} 33. a4 {[%emt 0:01:30]} Qg5 {[%emt 0:01:30]} 34. b5 {[%emt 0:01:30]} axb5 {[%emt 0:00:30]} 35. axb5 {[%emt 0:01:30]} Qg3 {[%emt 0:04:30]} 36. Rc1 {[%emt 0:01:30]} Rc8 {[%emt 0:01:30]} 37. Qe2 {[%emt 0:01:30]} Ne3 {[%emt 0:01:30]} 38. c6 {[%emt 0:01:30]} Kf7 {[%emt 0:02:30]} 39. Ra2 {[%emt 0:01:30]} bxc6 {[%emt 0:02:30]} 40. b6 {[%emt 0:04:23]} Nc4 {[%emt 0:04:30]} 41. Ra7+ {[%emt 0:02:31]} Kf6 {[%emt 0:01:30]} 42. Rxc4 {[%emt 0:00:52]} dxc4 {[%emt 0:01:30]} 43. Qe5+ {[%emt 0:00:09]} 1-0

[Event "TUR-ch Veterans 2019"]
[Site "Belek"]
[Date "2019.01.26"]
[Round "7.1"]
[White "Cetinkaya, Vedat Ali"]
[Black "Yasin, Hur"]
[Result "1-0"]
[ECO "D37"]
[WhiteElo "2056"]
[BlackElo "2004"]
[Annotator "NA"]
[PlyCount "84"]
[EventDate "2019.01.20"]
[EventType "swiss"]
[EventCountry "TUR"]
[SourceTitle "playchess.com"]
[Source "ChessBase"]
[SourceQuality "1"]
[TimeControl "5400+30"]

1. d4 {[%emt 0:00:30]} Nf6 {[%emt 0:00:30]} 2. c4 {[%emt 0:00:00]} e6 {[%emt 0:00:00]} 3. Nc3 {[%emt 0:02:00]} d5 {[%emt 0:02:00]} 4. e3 {[%emt 0:00:30]} Be7 {[%emt 0:00:00]} 5. Nf3 {[%emt 0:00:30]} O-O {[%emt 0:01:00]} 6. Bd3 {[%emt 0:00:30]} c5 {[%emt 0:00:00]} 7. O-O {[%emt 0:02:30]} dxc4 {[%emt 0:02:00]} 8. Bxc4 {[%emt 0:00:30]} a6 {[%emt 0:00:30]} 9. a4 {[%emt 0:01:30]} Nc6 {[%emt 0:00:30]} 10. Qd3 {[%emt 0:04:30] LiveBook: 3 Games D37: Queen's Gambit Declined: 5 Bf4} (10. dxc5 Bxc5 11. Qe2 Qc7 12. h3 b6 13. e4 Nd4 14. Nxd4 Bxd4 15. Rd1 Bxc3 16. bxc3 Bb7 17. Bd3 Rfd8 18. Bb2 Nd7 {½-½ (31) Postny,E (2575)-Brkic,A (2573) Austria 2017}) 10... b6 {[%emt 0:01:30]} 11. Rd1 {[%emt 0:02:30]} Bb7 {[%emt 0:01:30]} 12. Qe2 {[%emt 0:02:30]} Qc7 {[%emt 0:00:00]} 13. Bd2 $146 {[%emt 0:16:30]} ({Predecessor:} 13. Ng5 Nb4 14. Na2 b5 15. Nxb4 bxc4 16. Nc2 Rac8 17. h3 cxd4 18. Nxd4 {½-½ (55) Morris,J (2114)-Solomon,S (2455) Gold Coast 2009}) 13... Rfd8 {[%emt 0:01:00]} 14. Be1 {[%emt 0:00:30]} cxd4 {[%emt 0:05:30]} 15. exd4 {[%emt 0:01:30]} Ng4 {[%emt 0:04:30]} (15... Bd6 $15) 16. g3 {[%emt 0:09:30]} Nf6 {[%emt 0:00:30]} 17. Rac1 {[%emt 0:02:30]} Na5 {[%emt 0:11:30]} 18. Ba2 $1 {[%emt 0:02:30]} Qd6 {[%emt 0:02:30] [#]} (18... Qd7 $11 {keeps the balance.}) 19. Ne5 {[%emt 0:01:30]} (19. b4 $1 $16 {[%mdl 512]}) 19... Rac8 {[%emt 0:01:30]} 20. f3 {[%emt 0:01:30]} Nc6 {[%emt 0:02:30]} 21. Bf2 {[%emt 0:02:30]} Qb4 $2 {[%emt 0:05:30]} (21... Nb4 $11) 22. Nxf7 {[%emt 0:03:30]} Kxf7 {[%emt 0:11:30]} 23. Qxe6+ {[%emt 0:01:30]} Ke8 {[%emt 0:00:30]} 24. Qf7+ {[%emt 0:02:30]} Kd7 {[%emt 0:00:30]} 25. d5 {[%emt 0:02:30]} Kc7 {[%emt 0:02:30]} 26. dxc6 {[%emt 0:01:30]} Rxd1+ {[%emt 0:01:30]} 27. Rxd1 {[%emt 0:01:30]} Bxc6 {[%emt 0:01:30]} 28. Rd4 {[%emt 0:00:30]} Qc5 {[%emt 0:09:30]} 29. Re4 {[%emt 0:01:30]} Kd8 $18 {[%emt 0:09:30]} 30. Rxe7 {[%emt 0:01:30]} Qxe7 {[%emt 0:01:30]} 31. Bxb6+ {[%emt 0:00:30]} Rc7 {[%emt 0:02:30]} 32. Qxe7+ {[%emt 0:00:30]} Kxe7 {[%emt 0:00:30]} 33. Bxc7 {[%emt 0:00:30]} Bxf3 {[%emt 0:00:00]} 34. Bc4 {[%emt 0:00:30]} Bb7 {[%emt 0:00:00]} 35. Be5 {[%emt 0:00:30]} g6 {[%emt 0:00:30]} 36. Bxf6+ {[%emt 0:00:30]} Kxf6 {[%emt 0:00:00]} 37. Kf2 {[%emt 0:00:30]} Ke5 {[%emt 0:01:00]} 38. Ke3 {[%emt 0:00:00]} h6 {[%emt 0:00:30]} 39. b4 {[%emt 0:00:00]} g5 {[%emt 0:00:30]} 40. Bd3 {[%emt 0:00:30]} Bc8 {[%emt 0:01:30]} 41. a5 {[%emt 0:00:30]} h5 {[%emt 0:01:02]} 42. Ne4 {[%emt 0:00:30]} Kd5 {[%emt 0:01:15]} 1-0